bitfinex-derivatives/quotes_BTCF0:USTF0_20220103
["timestamp","ask_amount","ask_price","bid_price","bid_amount"]
[1641243147465,0.32,45913.0,45911.0,1.45453236]
[1641243148067,0.14,45913.0,45911.0,1.45453236]
[1641243148267,0.32,45913.0,45911.0,1.45453236]
[1641243148768,0.18,45913.0,45911.0,1.45453236]
[1641243149369,0.18,45913.0,45910.0,1.45453236]
[1641243149570,0.321,45913.0,45910.0,1.45453236]
[1641243149970,0.321,45913.0,45911.0,1.45453236]
[1641243150972,0.18,45913.0,45911.0,1.45453236]
[1641243151573,0.322,45913.0,45911.0,1.45453236]
[1641243151773,0.322,45913.0,45912.0,0.01229683]
[1641243152777,0.18,45913.0,45912.0,0.01229683]
[1641243153176,1.323,45913.0,45910.0,0.01229683]
[1641243153475,0.18,45911.0,45905.0,0.02177735]
[1641243153677,0.18,45907.0,45905.0,0.02177735]
[1641243154387,0.18,45907.0,45900.0,0.02177985]
[1641243154587,0.18,45904.0,45900.0,0.02177985]
[1641243155290,0.009794,45906.0,45900.0,0.02177985]
[1641243155291,0.18,45902.0,45900.0,0.02177985]
[1641243155689,0.26562,45902.0,45900.0,0.02177985]
[1641243155890,0.26562,45902.0,45899.0,0.14033567]
[1641243157291,0.26562,45902.0,45894.0,1.73986612]
[1641243157492,0.18,45897.0,45894.0,1.73986612]
[1641243157795,0.18,45897.0,45896.0,0.001]
[1641243158491,0.18,45897.0,45894.0,0.16211829]
[1641243158695,0.27408,45897.0,45894.0,0.16211829]
[1641243158892,0.27408,45897.0,45896.0,0.001]
[1641243159295,0.27408,45897.0,45894.0,0.16211829]
[1641243159498,0.41508,45897.0,45894.0,0.16211829]
[1641243159697,0.41508,45897.0,45896.0,1.46022388]
[1641243160098,0.42177014,45897.0,45896.0,1.45922388]
[1641243160498,0.42177014,45897.0,45896.0,1.46022388]
[1641243160899,0.28077014,45897.0,45896.0,1.45922388]
[1641243161298,0.28077014,45897.0,45896.0,1.46022388]
[1641243161503,0.42077014,45897.0,45896.0,1.45922388]
[1641243161698,0.42077014,45897.0,45896.0,1.46022388]
[1641243161898,0.42077014,45897.0,45896.0,1.45912388]
[1641243162101,0.0009,45896.0,45889.0,1.57774783]
[1641243162300,0.18,45890.0,45889.0,1.57774783]
[1641243162500,0.189794,45890.0,45884.0,0.13834409]
[1641243162803,0.12,45886.0,45884.0,0.13834409]
[1641243163000,0.21392,45886.0,45884.0,0.13834409]
[1641243163203,0.14702581,45885.0,45882.0,0.46586837]
[1641243163402,0.14702581,45885.0,45875.0,0.56352897]
[1641243163602,0.18,45884.0,45875.0,0.58532092]
[1641243163801,0.00669014,45884.0,45875.0,0.58532092]
[1641243164001,0.00669014,45884.0,45875.0,0.56352897]
[1641243164303,0.00669014,45884.0,45880.0,0.001]
[1641243164502,0.00669014,45884.0,45883.0,0.001]
[1641243165104,0.00669014,45884.0,45880.0,0.02178946]
[1641243165306,0.18669014,45884.0,45875.0,0.14033567]
[1641243165505,0.32869014,45884.0,45875.0,0.13943567]
[1641243165804,0.12669014,45883.0,45875.0,0.13943567]
[1641243166203,0.12669014,45883.0,45880.0,0.001]
[1641243166403,0.00669014,45882.0,45875.0,0.13943567]
[1641243166603,0.00669014,45882.0,45881.0,0.02178891]
[1641243166804,0.00669014,45883.0,45881.0,0.09379]
[1641243167004,0.14033567,45885.0,45882.0,0.001]
[1641243167205,0.14033567,45885.0,45881.0,0.09279]
[1641243167606,0.18,45882.0,45881.0,0.09279]
[1641243167807,0.18,45882.0,45875.0,0.13943567]
[1641243168409,0.28333567,45885.0,45875.0,0.13943567]
[1641243168608,0.18,45881.0,45875.0,0.13943567]
[1641243168808,0.18,45881.0,45880.0,0.001]
[1641243169311,0.18,45881.0,45875.0,0.13943567]
[1641243169512,0.143,45881.0,45875.0,0.13943567]
[1641243169916,0.18,45876.0,45871.0,0.13842242]
[1641243170511,0.009794,45875.0,45871.0,0.13842242]
[1641243170710,0.072184,45875.0,45871.0,0.13842242]
[1641243170912,0.072184,45875.0,45870.0,0.14033567]
[1641243171110,0.18,45871.0,45870.0,0.14033567]
[1641243171509,0.18,45871.0,45868.0,1.47047095]
[1641243172513,0.009794,45870.0,45868.0,1.47047095]
[1641243172812,0.009794,45870.0,45866.0,0.14033567]
[1641243172813,0.87060178,45870.0,45869.0,0.001]
[1641243173012,0.87060178,45870.0,45866.0,0.14033567]
[1641243173212,0.18,45868.0,45866.0,0.14033567]
[1641243173412,0.18,45868.0,45865.0,1.47047095]
[1641243174114,0.02180573,45866.0,45840.0,0.02180813]
[1641243174314,0.18,45858.0,45841.0,2.55758918]
[1641243174514,0.18,45849.0,45845.0,1.69490903]
[1641243175512,0.327,45849.0,45845.0,1.69490903]
[1641243175713,0.147,45849.0,45845.0,1.69490903]
[1641243176314,0.147,45849.0,45843.0,0.14033567]
[1641243176914,0.18,45850.0,45843.0,0.14033567]
[1641243177618,0.261,45850.0,45843.0,0.14033567]
[1641243177816,0.141,45850.0,45843.0,0.14033567]
[1641243178217,0.18,45847.0,45843.0,0.14033567]
[1641243178416,0.18,45847.0,45846.0,0.001]
[1641243179019,0.18,45848.0,45846.0,0.001]
[1641243179218,0.18,45848.0,45847.0,0.001]
[1641243179618,0.321,45848.0,45847.0,0.001]
[1641243180020,1.18180778,45848.0,45847.0,0.001]
[1641243180220,1.00180778,45848.0,45847.0,0.001]
[1641243180620,1.00180778,45848.0,45845.0,0.09415]
[1641243180823,0.86080778,45848.0,45845.0,0.09415]
[1641243181220,1.2297254,45850.0,45845.0,0.09415]
[1641243181621,1.3707254,45848.0,45845.0,0.09415]
[1641243182020,0.00682239,45847.0,45845.0,0.09415]
[1641243182222,0.00682239,45847.0,45846.0,0.2018054]
[1641243183622,0.13982239,45847.0,45846.0,0.3378054]
[1641243184223,0.13982239,45847.0,45846.0,0.1578054]
[1641243184724,0.00682239,45847.0,45846.0,0.0218054]
[1641243184925,0.00682239,45847.0,45846.0,0.21411455]
[1641243185526,0.14682239,45847.0,45846.0,0.35611455]
[1641243186324,0.14682239,45847.0,45846.0,0.17611455]
[1641243186925,0.00682239,45847.0,45846.0,0.03411455]
[1641243187125,0.00682239,45847.0,45846.0,0.21411455]
[1641243187325,0.00682239,45852.0,45846.0,0.21411455]
[1641243187527,3.23056107,45863.0,45851.0,0.02180111]
[1641243187731,0.14033567,45863.0,45861.0,0.18]
[1641243187927,0.14033567,45863.0,45861.0,0.07231]
[1641243188345,0.14033567,45863.0,45862.0,0.001]
[1641243189542,0.28433567,45863.0,45862.0,0.001]
[1641243189944,0.28433567,45863.0,45861.0,0.07231]
[1641243190244,0.28433567,45863.0,45857.0,1.59840296]
[1641243190845,0.14033567,45863.0,45862.0,1.47127747]
[1641243191244,0.32033567,45863.0,45862.0,1.47127747]
[1641243191444,0.32033567,45863.0,45862.0,1.21887747]
[1641243191445,0.48414252,45863.0,45862.0,1.21887747]
[1641243191644,1.63693652,45863.0,45855.0,1.59840296]
[1641243191846,0.18,45860.0,45855.0,1.59840296]
[1641243192344,0.49393652,45863.0,45855.0,1.59840296]
[1641243192746,0.49393652,45863.0,45847.0,0.16214073]
[1641243192747,0.35193652,45863.0,45851.0,1.59840296]
[1641243193146,0.14033567,45853.0,45851.0,1.59840296]
[1641243193348,0.14033567,45853.0,45852.0,0.001]
[1641243193546,0.14033567,45853.0,45852.0,0.01330876]
[1641243193747,1.52085507,45863.0,45852.0,0.01330876]
[1641243193947,1.52085507,45863.0,45852.0,0.01230876]
[1641243194348,1.52085507,45863.0,45854.0,0.02180148]
[1641243194548,1.52085507,45863.0,45854.0,0.10934148]
[1641243194752,1.52085507,45863.0,45855.0,0.01230876]
[1641243194948,0.15012967,45863.0,45855.0,0.01230876]
[1641243195548,0.29112967,45863.0,45855.0,0.01230876]
[1641243196248,0.29112967,45863.0,45855.0,0.10147876]
[1641243196653,0.29112967,45863.0,45856.0,0.01230876]
[1641243196851,0.15012967,45863.0,45861.0,1.47108618]
[1641243197450,0.29112967,45863.0,45861.0,1.47108618]
[1641243198456,0.29112967,45863.0,45862.0,1.47108618]
[1641243198855,0.15012967,45863.0,45862.0,1.47108618]
[1641243199456,0.29112967,45863.0,45862.0,1.47108618]
[1641243200655,0.28133567,45863.0,45862.0,1.47108618]
[1641243201457,0.28233567,45863.0,45862.0,1.47108618]
[1641243202958,0.14714452,45863.0,45862.0,1.47108618]
[1641243203158,0.32714452,45863.0,45862.0,1.47108618]
[1641243203359,1.47993852,45863.0,45855.0,1.59490457]
[1641243203561,0.18,45857.0,45847.0,0.16214071]
[1641243203758,0.18,45857.0,45838.0,0.45059172]
[1641243203759,0.18,45850.0,45841.0,1.69490903]
[1641243203961,0.274134,45850.0,45848.0,0.01231078]
[1641243204158,0.00680885,45849.0,45842.0,0.01231078]
[1641243204361,0.00680885,45849.0,45841.0,1.91033324]
[1641243204860,0.00680885,45849.0,45842.0,0.01231242]
[1641243205258,0.14033567,45845.0,45842.0,0.01231242]
[1641243205461,0.009794,45844.0,45842.0,0.01231242]
[1641243205759,1.152794,45844.0,45842.0,0.01231242]
[1641243205959,0.00680885,45843.0,45835.0,0.01231242]
[1641243206161,1.3231,45840.0,45831.0,1.69490903]
[1641243206358,1.143,45837.0,45831.0,1.69490903]
[1641243206559,0.009794,45836.0,45831.0,1.69490903]
[1641243206859,1.143,45834.0,45832.0,0.01231474]
[1641243207259,0.28067134,45833.0,45824.0,2.09772421]
[1641243207460,0.28748019,45833.0,45824.0,0.21542421]
[1641243207660,0.00680885,45832.0,45825.0,0.01231546]
[1641243208259,0.00680885,45832.0,45825.0,0.19231546]
[1641243208459,0.00680885,45832.0,45825.0,0.01231546]
[1641243208663,0.00680885,45832.0,45827.0,0.18]
[1641243208861,0.00680885,45832.0,45831.0,0.001]
[1641243209261,0.00680885,45832.0,45831.0,0.01331546]
[1641243209560,0.15380885,45832.0,45831.0,0.001]
[1641243209761,0.15380885,45832.0,45831.0,0.01331546]
[1641243209964,0.15380885,45832.0,45831.0,0.001]
[1641243210161,0.15380885,45832.0,45831.0,0.21512832]
[1641243210763,0.00680885,45832.0,45831.0,0.21512832]
[1641243211064,0.0001,45840.0,45831.0,0.21512832]
[1641243211265,0.14043567,45840.0,45835.0,0.18]
[1641243211463,0.28643567,45840.0,45835.0,0.18]
[1641243211662,0.28643567,45840.0,45839.0,0.20180902]
[1641243211863,0.28643567,45840.0,45839.0,1.73944701]
[1641243212166,0.28643567,45840.0,45839.0,1.57176247]
[1641243212463,0.28643567,45840.0,45839.0,1.54995345]
[1641243212663,0.28643567,45840.0,45839.0,1.55095345]
[1641243212865,0.14043567,45840.0,45839.0,0.07535546]
[1641243213064,0.14043567,45840.0,45839.0,0.25535546]
[1641243213263,0.14043567,45840.0,45839.0,0.07535546]
[1641243213462,0.14043567,45840.0,45839.0,0.07435546]
[1641243213463,0.28243567,45840.0,45839.0,0.07435546]
[1641243214164,0.28243567,45840.0,45839.0,0.25435546]
[1641243214365,0.28243567,45840.0,45839.0,0.27716441]
[1641243214564,3.567e-05,45840.0,45839.0,0.09616441]
[1641243214765,3.567e-05,45840.0,45839.0,0.27616441]
[1641243215265,3.567e-05,45840.0,45839.0,0.23650008]
[1641243215465,0.14043567,45850.0,45839.0,0.39050008]
[1641243215665,0.14043567,45850.0,45844.0,0.001]
[1641243216070,0.14043567,45850.0,45844.0,0.01331546]
[1641243216266,0.14043567,45850.0,45844.0,0.001]
[1641243216469,0.14043567,45850.0,45844.0,0.01331546]
[1641243216766,0.14043567,45850.0,45844.0,0.001]
[1641243216967,0.14043567,45850.0,45844.0,0.01331546]
[1641243217168,1.2297254,45846.0,45844.0,0.01331546]
[1641243217568,0.26733567,45845.0,45844.0,0.14431546]
[1641243217970,0.26733567,45845.0,45844.0,0.14331546]
[1641243219074,0.14033567,45845.0,45844.0,0.01231546]
[1641243219470,0.29033567,45845.0,45840.0,0.01231546]
[1641243219672,0.29033567,45845.0,45844.0,0.01231546]
[1641243220072,0.29033567,45845.0,45840.0,0.01231546]
[1641243220772,0.14033567,45845.0,45840.0,0.01231546]
[1641243221578,1.23157333,45843.0,45840.0,0.01231546]
[1641243222780,1.23157333,45843.0,45840.0,0.19231546]
[1641243222980,0.86209781,45841.0,45840.0,0.19231546]
[1641243223189,0.86209781,45841.0,45840.0,0.18]
[1641243223589,0.98909781,45841.0,45840.0,0.18]
[1641243223790,0.86207968,45842.0,45840.0,0.20180718]
[1641243223990,0.86207968,45842.0,45841.0,0.18]
[1641243224191,7.968e-05,45842.0,45841.0,0.18]
[1641243224392,0.0001,45850.0,45841.0,0.509152]
[1641243224590,0.0001,45850.0,45846.0,0.001]
[1641243224792,0.0001,45850.0,45849.0,0.001]
[1641243225491,0.0001,45850.0,45849.0,0.152]
[1641243225492,0.0641,45850.0,45849.0,0.152]
[1641243226491,0.07091314,45850.0,45849.0,0.152]
[1641243226891,0.00691314,45850.0,45849.0,0.001]
[1641243227391,0.0001,45850.0,45849.0,0.001]
[1641243227592,0.10591314,45850.0,45849.0,0.149]
[1641243227794,0.0991,45850.0,45849.0,0.149]
[1641243227995,0.10591314,45850.0,45849.0,0.149]
[1641243228995,0.0001,45850.0,45849.0,0.001]
[1641243229695,0.0931,45850.0,45849.0,0.151]
[1641243230094,0.09991346,45850.0,45849.0,0.151]
[1641243230998,0.00691346,45850.0,45849.0,0.001]
[1641243231398,0.0001,45850.0,45849.0,0.001]
[1641243231600,0.09791346,45850.0,45849.0,1.62359695]
[1641243231998,0.0911,45850.0,45849.0,1.62359695]
[1641243232599,0.0911,45850.0,45849.0,0.152]
[1641243233400,0.0911,45850.0,45849.0,1.62359695]
[1641243233600,0.1461,45850.0,45849.0,1.77359695]
[1641243234403,0.1461,45850.0,45849.0,2.03554695]
[1641243234606,0.2686909,45870.0,45849.0,2.05735048]
[1641243234802,0.0001,45870.0,45862.0,0.18]
[1641243235001,0.00681185,45869.0,45868.0,0.18]
[1641243235200,0.00681185,45869.0,45868.0,0.181]
[1641243235400,0.00691185,45870.0,45868.0,0.181]
[1641243235603,0.0001,45870.0,45869.0,0.001]
[1641243235802,1.47095943,45871.0,45869.0,0.001]
[1641243236003,1.47095943,45871.0,45870.0,0.001]
[1641243236202,1.55864522,45875.0,45870.0,0.001]
[1641243236403,1.55864522,45875.0,45874.0,0.001]
[1641243236605,0.0001,45880.0,45874.0,0.05978]
[1641243236806,0.0001,45880.0,45879.0,0.001]
[1641243237204,0.0001,45880.0,45879.0,0.02278954]
[1641243237606,0.0001,45880.0,45879.0,0.33312521]
[1641243238405,0.0001,45880.0,45879.0,0.32364129]
[1641243238607,0.0001,45880.0,45879.0,0.31033567]
[1641243238806,0.0001,45880.0,45873.0,1.47159695]
[1641243239006,0.18,45878.0,45873.0,1.47159695]
[1641243239205,0.07205,45880.0,45873.0,1.47159695]
[1641243239405,0.18,45876.0,45873.0,1.47159695]
[1641243239709,0.18,45876.0,45874.0,0.01230779]
[1641243239906,0.18,45876.0,45873.0,0.166]
[1641243240506,0.14043567,45880.0,45873.0,0.166]
[1641243240706,0.0001,45880.0,45874.0,0.19230776]
[1641243241107,0.0001,45880.0,45875.0,0.01230776]
[1641243241507,0.0001,45880.0,45877.0,0.14033567]
[1641243241907,0.0001,45880.0,45878.0,0.01230776]
[1641243243508,0.0001,45880.0,45878.0,0.18130776]
[1641243244110,0.0001,45880.0,45879.0,0.01230776]
[1641243244913,0.1801,45880.0,45865.0,0.16213206]
[1641243245113,0.18,45877.0,45865.0,0.16213206]
[1641243245311,0.18,45877.0,45869.0,0.01230774]
[1641243247522,0.18,45877.0,45869.0,0.18130774]
[1641243248222,0.18,45877.0,45870.0,0.01230774]
[1641243248423,0.14033567,45879.0,45870.0,0.01230774]
[1641243248824,0.14033567,45879.0,45873.0,0.02179247]
[1641243249023,0.0001,45880.0,45873.0,0.02179247]
[1641243249224,0.0001,45880.0,45874.0,0.01230774]
[1641243249624,0.0001,45880.0,45877.0,0.14033567]
[1641243251524,0.0001,45880.0,45877.0,0.30733567]
[1641243252325,0.18,45878.0,45877.0,0.167]
[1641243252627,1.39449,45878.0,45868.0,0.14033567]
[1641243252925,0.18,45873.0,45868.0,0.14033567]
[1641243253126,0.189794,45873.0,45868.0,0.14033567]
[1641243253524,0.00680926,45872.0,45868.0,0.14033567]
[1641243253725,0.18,45870.0,45868.0,0.14033567]
[1641243254225,0.00680926,45869.0,45868.0,0.14033567]
[1641243255626,0.14880926,45869.0,45868.0,0.21933567]
[1641243257427,0.00680926,45869.0,45868.0,0.15264457]
[1641243257629,0.12580926,45869.0,45868.0,0.26964457]
[1641243257832,0.119,45869.0,45868.0,0.26964457]
[1641243258030,0.12580926,45869.0,45868.0,0.26964457]
[1641243258832,0.12580926,45869.0,45868.0,0.15264457]
[1641243259032,0.00680926,45869.0,45868.0,0.15264457]
[1641243259632,0.15680926,45869.0,45868.0,0.17764457]
[1641243260836,0.00680926,45869.0,45868.0,0.15264457]
[1641243261235,0.00680926,45872.0,45868.0,0.15264457]
[1641243261534,1.49480424,45869.0,45868.0,0.01366433]
[1641243261833,1.64493391,45869.0,45860.0,1.47159695]
[1641243262034,0.18,45861.0,45859.0,1.47159695]
[1641243262334,1.152794,45860.0,45859.0,1.47159695]
[1641243262734,1.16114738,45860.0,45859.0,1.47159695]
[1641243263353,1.16114738,45860.0,45853.0,1.73391025]
[1641243263554,1.32514738,45860.0,45853.0,0.14033567]
[1641243263753,0.12,45855.0,45853.0,0.14033567]
[1641243263954,0.12,45855.0,45854.0,0.01231278]
[1641243264253,0.06,45856.0,45854.0,0.01231278]
[1641243264454,0.00835338,45855.0,45854.0,0.01231278]
[1641243264654,1.0498997,45855.0,45854.0,0.01231278]
[1641243264854,1.04154632,45855.0,45854.0,0.01231278]
[1641243265054,1.0498997,45855.0,45854.0,0.01231278]
[1641243265355,0.8698997,45855.0,45854.0,0.01231278]
[1641243265556,0.17535338,45855.0,45854.0,0.01231278]
[1641243267158,0.35535338,45855.0,45854.0,0.01231278]
[1641243267359,0.19814738,45855.0,45854.0,0.01231278]
[1641243267560,0.38714738,45855.0,45854.0,0.01231278]
[1641243267861,1.53014738,45855.0,45849.0,0.14033567]
[1641243268062,0.18,45850.0,45846.0,0.13849558]
[1641243268260,0.18,45847.0,45845.0,1.47159695]
[1641243268462,0.18,45847.0,45842.0,1.47159695]
[1641243268661,0.18,45844.0,45842.0,1.47159695]
[1641243268861,0.009794,45843.0,45842.0,1.47159695]
[1641243269261,0.01814738,45843.0,45842.0,1.47159695]
[1641243269668,1.34314738,45843.0,45842.0,1.47159695]
[1641243269871,1.48348305,45843.0,45835.0,3.06517153]
[1641243270063,1.72955187,45843.0,45835.0,1.47159695]
[1641243270265,0.12,45836.0,45835.0,1.47159695]
[1641243270463,0.23928,45836.0,45835.0,1.47159695]
[1641243271064,0.24763338,45836.0,45831.0,0.13857044]
[1641243271464,0.00835338,45835.0,45831.0,0.13857044]
[1641243271866,0.14868905,45835.0,45831.0,0.13857044]
[1641243272266,0.14033567,45835.0,45830.0,1.47059695]
[1641243272868,0.14033567,45835.0,45832.0,0.18]
[1641243273067,0.14033567,45835.0,45832.0,0.06008]
[1641243273268,0.14033567,45835.0,45832.0,0.24008]
[1641243273473,0.14033567,45835.0,45832.0,0.06008]
[1641243273674,0.14033567,45835.0,45834.0,0.001]
[1641243275169,0.15012967,45843.0,45834.0,0.001]
[1641243275369,0.15012967,45843.0,45833.0,0.20181182]
[1641243275572,0.00847791,45842.0,45833.0,0.20181182]
[1641243276169,0.00847791,45842.0,45833.0,0.02181182]
[1641243276369,0.00847791,45842.0,45833.0,0.08181182]
[1641243276570,0.06847791,45842.0,45833.0,0.08181182]
[1641243276970,0.00847791,45841.0,45833.0,0.20181182]
[1641243277271,0.00847791,45841.0,45835.0,1.47025672]
[1641243277470,0.00847791,45842.0,45835.0,1.47025672]
[1641243277679,0.00847791,45840.0,45835.0,1.47025672]
[1641243277969,0.19647791,45841.0,45833.0,1.49206854]
[1641243278170,0.18,45838.0,45833.0,1.47025672]
[1641243278374,0.009794,45837.0,45833.0,1.47025672]
[1641243278570,0.01827191,45837.0,45833.0,1.47025672]
[1641243278970,0.00847791,45836.0,45832.0,1.47025672]
[1641243279670,0.19547791,45836.0,45832.0,1.47025672]
[1641243279870,0.14033567,45833.0,45832.0,1.47025672]
[1641243280273,0.14881358,45833.0,45832.0,1.47025672]
[1641243280573,0.14881358,45833.0,45828.0,1.49207069]
[1641243280772,0.00847791,45833.0,45832.0,0.20281159]
[1641243280974,0.86177391,45839.0,45832.0,0.26269159]
[1641243281172,0.86177391,45839.0,45832.0,0.08169159]
[1641243281373,0.00847703,45838.0,45833.0,0.12]
[1641243281681,1.23069048,45844.0,45837.0,0.14280905]
[1641243281875,0.14033567,45853.0,45843.0,0.32033567]
[1641243282072,0.14033567,45853.0,45846.0,0.18]
[1641243282275,0.14033567,45853.0,45843.0,0.38765567]
[1641243282674,0.00733101,45852.0,45843.0,0.38765567]
[1641243282874,0.00733101,45852.0,45848.0,0.001]
[1641243283074,0.00733101,45852.0,45843.0,0.38765567]
[1641243283276,1.23096222,45851.0,45843.0,0.20765567]
[1641243283576,1.23096222,45851.0,45844.0,0.01231335]
[1641243283787,0.00733101,45850.0,45844.0,0.01231335]
[1641243284376,0.00733101,45851.0,45844.0,0.01231335]
[1641243284573,0.00733101,45849.0,45844.0,0.01231335]
[1641243284775,0.00733101,45850.0,45844.0,0.01231335]
[1641243285074,0.18733101,45848.0,45844.0,0.01231335]
[1641243285275,0.18,45848.0,45844.0,0.01231335]
[1641243285676,0.00733101,45847.0,45844.0,0.176]
[1641243285877,0.14033567,45846.0,45845.0,0.01231335]
[1641243286078,0.14033567,45846.0,45844.0,0.176]
[1641243286275,0.14766668,45846.0,45845.0,0.01231453]
[1641243286477,0.14033567,45846.0,45845.0,0.01231453]
[1641243287577,0.14033567,45846.0,45845.0,0.184]
[1641243287776,0.14033567,45846.0,45845.0,0.19631453]
[1641243289478,0.14033567,45846.0,45841.0,1.46584099]
[1641243289678,0.30333567,45846.0,45845.0,0.181]
[1641243290478,1.16549051,45846.0,45845.0,0.181]
[1641243290880,1.00249051,45846.0,45840.0,1.46584099]
[1641243291083,1.00249051,45846.0,45845.0,0.01231448]
[1641243291283,1.00249051,45846.0,45841.0,0.01231448]
[1641243291479,1.00249051,45846.0,45845.0,0.01231448]
[1641243291678,1.13049051,45846.0,45845.0,0.181]
[1641243291879,1.13049051,45846.0,45845.0,0.19331448]
[1641243292883,0.86215484,45846.0,45845.0,0.01231448]
[1641243293082,1.23164977,45848.0,45845.0,0.01231448]
[1641243293083,0.86215484,45848.0,45845.0,0.01231448]
[1641243293283,0.86215484,45848.0,45847.0,0.18]
[1641243293582,0.86215484,45848.0,45847.0,0.01231448]
[1641243294083,0.0001,45850.0,45847.0,0.01231448]
[1641243295582,0.0001,45850.0,45847.0,0.19431448]
[1641243295982,0.0001,45850.0,45847.0,0.182]
[1641243297003,0.0001,45850.0,45846.0,0.14033567]
[1641243297203,0.0001,45850.0,45848.0,0.01231366]
[1641243297403,0.0001,45850.0,45847.0,0.01231366]
[1641243297604,0.0001,45850.0,45849.0,0.01231366]
[1641243297803,0.0001,45850.0,45848.0,0.01231366]
[1641243298205,0.0001,45850.0,45849.0,0.01231366]
[1641243298505,0.0001,45850.0,45849.0,0.18]
[1641243298908,0.14033567,45856.0,45849.0,0.19231351]
[1641243299105,0.0001,45860.0,45849.0,0.19231351]
[1641243299305,0.0001,45860.0,45857.0,0.18]
[1641243299506,0.0001,45860.0,45859.0,0.001]
[1641243299706,0.1171,45860.0,45859.0,0.001]
[1641243301008,0.0001,45860.0,45859.0,0.001]
[1641243301709,0.00742916,45860.0,45859.0,0.184]
[1641243302910,0.00742916,45860.0,45859.0,0.001]
[1641243303711,0.00742916,45860.0,45859.0,0.185]
[1641243303912,0.00742916,45860.0,45859.0,0.365]
[1641243304212,0.0001,45860.0,45859.0,0.19731141]
[1641243304410,0.0001,45860.0,45859.0,0.19631141]
[1641243305011,0.0001,45860.0,45859.0,0.184]
[1641243305610,0.0001,45860.0,45859.0,0.186]
[1641243306011,0.0001,45860.0,45859.0,0.32633567]
[1641243307112,0.0001,45860.0,45859.0,0.14033567]
[1641243307713,0.0001,45860.0,45859.0,0.32533567]
[1641243309013,0.0001,45860.0,45859.0,0.14033567]
[1641243309714,0.0001,45860.0,45859.0,0.32533567]
[1641243310917,0.0001,45860.0,45859.0,0.14033567]
[1641243311617,0.1881,45860.0,45859.0,0.28433567]
[1641243312022,0.19542916,45860.0,45859.0,0.28433567]
[1641243313019,0.00742916,45860.0,45859.0,0.14033567]
[1641243313619,0.0001,45860.0,45859.0,0.14033567]
[1641243313820,0.1871,45860.0,45859.0,0.30733567]
[1641243314020,0.19442916,45860.0,45859.0,0.30733567]
[1641243314420,0.19442916,45860.0,45859.0,0.32913517]
[1641243314624,2.916e-05,45860.0,45859.0,0.34144535]
[1641243315021,2.916e-05,45860.0,45859.0,0.17444535]
[1641243315220,0.14033567,45865.0,45859.0,0.17444535]
[1641243315422,0.14033567,45865.0,45862.0,0.18]
[1641243316023,0.00634353,45864.0,45863.0,0.01230979]
[1641243316223,0.0001,45870.0,45864.0,0.19643406]
[1641243316424,0.0001,45870.0,45868.0,0.18]
[1641243316623,0.0001,45870.0,45868.0,0.08298]
[1641243317023,0.0001,45870.0,45869.0,0.18]
[1641243317227,0.0001,45870.0,45869.0,0.181]
[1641243317725,0.0001,45870.0,45869.0,0.377]
[1641243317925,0.0001,45870.0,45869.0,0.65767134]
[1641243318425,0.0001,45870.0,45869.0,0.93161435]
[1641243318825,0.0001,45870.0,45869.0,1.25795935]
[1641243319030,0.0001,45870.0,45869.0,1.06195935]
[1641243319829,0.0001,45870.0,45869.0,0.75061435]
[1641243320027,0.1801,45870.0,45869.0,0.20730851]
[1641243320228,1.143,45869.0,45862.0,1.46584099]
[1641243320427,0.18,45865.0,45862.0,1.46584099]
[1641243320631,0.20180463,45865.0,45862.0,1.46584099]
[1641243320930,0.00639888,45864.0,45862.0,1.46584099]
[1641243321129,0.00639888,45864.0,45859.0,0.14033567]
[1641243321529,0.18,45861.0,45859.0,0.14033567]
[1641243321929,0.09424924,45860.0,45859.0,0.14033567]
[1641243322331,0.09424924,45860.0,45859.0,0.15264717]
[1641243322828,0.00639888,45860.0,45859.0,0.15264717]
[1641243323930,0.18439888,45860.0,45859.0,0.32464717]
[1641243325130,0.00639888,45860.0,45851.0,1.09914237]
[1641243325331,0.00639888,45860.0,45852.0,0.75882383]
[1641243325534,0.08916952,45863.0,45852.0,0.75882383]
[1641243325831,0.18,45865.0,45852.0,0.75882383]
[1641243326034,0.14033567,45861.0,45851.0,0.39180321]
[1641243326232,0.14033567,45861.0,45851.0,0.21180321]
[1641243326432,0.00561186,45860.0,45852.0,0.01231135]
[1641243327133,0.06761186,45860.0,45852.0,0.01231135]
[1641243327633,0.00561186,45859.0,45852.0,0.01231135]
[1641243327832,0.00561186,45859.0,45852.0,0.20631135]
[1641243328236,0.00561186,45859.0,45853.0,0.01231135]
[1641243329837,0.17461186,45859.0,45853.0,0.19831135]
[1641243330038,0.17461186,45859.0,45853.0,0.186]
[1641243330236,0.00561186,45858.0,45854.0,0.01231135]
[1641243330837,0.169,45859.0,45853.0,0.186]
[1641243331037,0.18,45860.0,45851.0,0.02180321]
[1641243331238,0.00561313,45858.0,45854.0,0.01231208]
[1641243331440,0.00561313,45859.0,45852.0,0.01231208]
[1641243331639,0.00561313,45859.0,45851.0,0.02180321]
[1641243331839,0.00561313,45857.0,45854.0,0.189]
[1641243332041,1.23132282,45856.0,45854.0,0.189]
[1641243332442,0.00561313,45855.0,45854.0,0.189]
[1641243332941,0.00561313,45855.0,45854.0,0.20131184]
[1641243333141,0.00561313,45855.0,45854.0,0.01231184]
[1641243333541,0.00561313,45855.0,45852.0,0.01231184]
[1641243333841,0.00561313,45855.0,45854.0,0.20231184]
[1641243335742,0.00561313,45855.0,45854.0,0.20331184]
[1641243336543,0.00561313,45855.0,45854.0,0.191]
[1641243336744,0.02742268,45855.0,45848.0,1.45615807]
[1641243336946,0.20181208,45849.0,45843.0,0.25230153]
[1641243337144,0.18,45844.0,45835.0,1.8215]
[1641243337344,0.24469,45844.0,45835.0,1.8215]
[1641243337543,0.001,45842.0,45835.0,1.8215]
[1641243337746,0.001,45842.0,45829.0,1.69490903]
[1641243337943,0.00661313,45842.0,45840.0,1.59357458]
[1641243338157,1.324,45841.0,45840.0,0.74007458]
[1641243338358,1.34581762,45841.0,45829.0,1.69490903]
[1641243338557,0.18,45831.0,45829.0,1.69490903]
[1641243338858,0.26075,45831.0,45830.0,0.01231764]
[1641243339457,0.08075,45831.0,45830.0,0.01231764]
[1641243339858,0.26875,45831.0,45830.0,0.01231764]
[1641243340159,0.54942134,45831.0,45822.0,0.01231764]
[1641243340460,0.54942134,45831.0,45830.0,0.01231764]